bitfinex/quotes_BTCUSD_20241124
["timestamp","ask_amount","ask_price","bid_price","bid_amount"]
[1732477546415,0.17164527,96275.0,96273.0,0.1863785]
[1732477546635,0.17164527,96275.0,96269.0,0.093487]
[1732477546636,0.1242,96273.0,96272.0,0.1863785]
[1732477547087,0.1280388,96273.0,96272.0,0.1863785]
[1732477547329,0.0524388,96273.0,96272.0,0.1863785]
[1732477547551,0.0524388,96273.0,96271.0,0.23300166]
[1732477547968,0.0756,96272.0,96271.0,0.23300166]
[1732477548199,0.0756,96272.0,96268.0,0.093488]
[1732477548200,0.07943871,96272.0,96268.0,0.093488]
[1732477548436,0.07943871,96272.0,96270.0,0.093486]
[1732477549362,0.07943871,96272.0,96269.0,0.093487]
[1732477550280,0.07943871,96272.0,96262.0,0.093494]
[1732477550281,0.00383871,96272.0,96271.0,0.093486]
[1732477550727,0.1284,96272.0,96270.0,0.093486]
[1732477550943,0.1284,96272.0,96271.0,0.23296236]
[1732477551180,0.1284,96272.0,96270.0,0.093486]
[1732477551181,0.04360628,96265.0,96261.0,0.04148961]
[1732477551400,0.1284,96264.0,96255.0,0.27956089]
[1732477551645,0.13224157,96264.0,96259.0,0.093496]
[1732477551871,0.13224157,96264.0,96263.0,0.23298373]
[1732477552324,0.1284,96264.0,96263.0,0.23298373]
[1732477552556,0.13224157,96264.0,96263.0,0.23298373]
[1732477554330,0.13224157,96264.0,96256.0,0.37306089]
[1732477554599,0.1284,96264.0,96259.0,0.37305789]
[1732477554824,0.00384148,96263.0,96259.0,0.27956089]
[1732477555201,0.00384148,96263.0,96256.0,0.27956089]
[1732477555566,0.00384148,96263.0,96254.0,0.093501]
[1732477555567,0.00384148,96263.0,96255.0,0.093501]
[1732477555777,0.00384148,96263.0,96256.0,0.37308361]
[1732477556264,0.00384148,96263.0,96254.0,0.093501]
[1732477556265,0.09010628,96256.0,96254.0,0.27958361]
[1732477556477,0.09010628,96246.0,96245.0,0.27958361]
[1732477556711,0.04360628,96245.0,96244.0,0.001711]
[1732477556915,0.22290728,96245.0,96244.0,0.001711]
[1732477557157,0.22290728,96245.0,96244.0,0.1415402]
[1732477557158,0.22674508,96245.0,96244.0,0.1415402]
[1732477557382,0.22674508,96245.0,96244.0,0.001711]
[1732477557827,0.12284408,96245.0,96244.0,0.001711]
[1732477558265,0.22674508,96245.0,96244.0,0.001711]
[1732477558482,0.22674508,96245.0,96244.0,0.006671]
[1732477560277,0.12284408,96245.0,96244.0,0.006671]
[1732477560495,0.27324508,96245.0,96244.0,0.006671]
[1732477560742,0.37525935,96245.0,96244.0,0.006671]
[1732477574135,0.37611535,96245.0,96244.0,0.006671]
[1732477575670,0.4193938,96245.0,96244.0,0.006671]
[1732477576333,0.6193938,96245.0,96244.0,0.006671]
[1732477576558,0.9693938,96245.0,96244.0,0.006671]
[1732477579479,0.9673938,96245.0,96244.0,0.006671]
[1732477579699,0.7673938,96245.0,96244.0,0.006671]
[1732477579927,0.9673938,96245.0,96244.0,0.006671]
[1732477582429,0.9693938,96245.0,96244.0,0.006671]
[1732477587246,0.9673938,96245.0,96244.0,0.006671]
[1732477587456,1.0089088,96245.0,96244.0,0.006671]
[1732477588145,1.0109088,96245.0,96244.0,0.006671]
[1732477596201,1.003204,96245.0,96244.0,0.006671]
[1732477598221,0.958555,96245.0,96244.0,0.006671]
[1732477602736,0.958555,96245.0,96212.0,0.13956433]
[1732477602737,0.103936,96213.0,96212.0,0.13956433]
[1732477602942,0.207874,96212.0,96208.0,0.13956433]
[1732477603165,0.10394,96209.0,96208.0,0.13956433]
[1732477603394,0.103941,96208.0,96207.0,0.1397812]
[1732477603612,0.103943,96206.0,96205.0,0.18608578]
[1732477604069,0.10759801,96206.0,96205.0,0.18608578]
[1732477605329,0.10759801,96206.0,96203.0,0.23346303]
[1732477605561,0.00365501,96206.0,96203.0,0.23346303]
[1732477605794,0.103945,96204.0,96203.0,0.0008558]
[1732477606229,0.10759983,96204.0,96203.0,0.0008558]
[1732477607335,0.00365483,96204.0,96203.0,0.0008558]
[1732477607797,0.103944,96205.0,96203.0,0.0008558]
[1732477608020,0.00365483,96204.0,96203.0,0.0008558]
[1732477608680,0.0870257,96217.0,96205.0,0.093549]
[1732477608681,0.103933,96216.0,96205.0,0.093549]
[1732477608927,0.103934,96215.0,96208.0,0.1397889]
[1732477609142,0.10758984,96215.0,96208.0,0.1397889]
[1732477609354,0.00365584,96215.0,96207.0,0.1397889]
[1732477609554,0.00365584,96215.0,96205.0,0.18724121]
[1732477609555,0.00365584,96215.0,96209.0,0.140045]
[1732477609765,0.0870257,96217.0,96209.0,0.140045]
[1732477609971,0.0870257,96217.0,96210.0,0.093545]
[1732477610180,0.00365435,96214.0,96210.0,0.093545]
[1732477610393,0.0870257,96217.0,96210.0,0.093545]
[1732477611063,0.00365453,96216.0,96210.0,0.093545]
[1732477611285,0.00365453,96216.0,96209.0,0.27983201]
[1732477611529,0.0870257,96217.0,96209.0,0.18628701]
[1732477611753,0.0870257,96217.0,96210.0,0.093544]
[1732477611973,0.00365453,96216.0,96210.0,0.187088]
[1732477612194,0.00365453,96216.0,96210.0,0.093544]
[1732477612417,0.0870257,96217.0,96211.0,0.093544]
[1732477612647,0.0870257,96217.0,96210.0,0.187088]
[1732477612881,0.00365453,96216.0,96210.0,0.187088]
[1732477613280,0.0870257,96217.0,96210.0,0.187089]
[1732477613528,0.0870257,96217.0,96210.0,0.093544]
[1732477613752,0.00365453,96216.0,96210.0,0.187088]
[1732477614000,0.00365453,96216.0,96210.0,0.093544]
[1732477614423,0.0870257,96217.0,96210.0,0.093544]
[1732477614636,0.0870257,96217.0,96211.0,0.093544]
[1732477614844,0.00365444,96215.0,96210.0,0.093544]
[1732477615054,0.0870257,96217.0,96210.0,0.093544]
[1732477615265,0.00365019,96214.0,96210.0,0.32687501]
[1732477615482,0.0870257,96217.0,96210.0,0.23333101]
[1732477615694,0.0870257,96217.0,96210.0,0.093544]
[1732477615916,0.00365037,96216.0,96210.0,0.23336582]
[1732477616342,0.0870257,96217.0,96210.0,0.23336582]
[1732477616579,0.0870257,96217.0,96210.0,0.13982182]
[1732477616815,0.207867,96215.0,96210.0,0.13982182]
[1732477617020,0.103938,96211.0,96210.0,0.13982182]
[1732477617441,0.10758791,96211.0,96210.0,0.13982182]
[1732477617623,0.00364991,96211.0,96210.0,0.13982182]
[1732477617860,0.10758791,96211.0,96210.0,0.13982182]
[1732477618300,0.00364991,96211.0,96208.0,0.18642909]
[1732477618738,0.00364991,96211.0,96210.0,0.13986548]
[1732477619394,0.00364991,96211.0,96209.0,0.18642909]
[1732477619613,0.207867,96215.0,96209.0,0.18642909]
[1732477619843,0.00364991,96211.0,96209.0,0.18642909]
[1732477620065,0.103939,96210.0,96209.0,0.18642909]
[1732477620315,0.103939,96210.0,96205.0,0.000856]
[1732477620316,0.10758882,96210.0,96207.0,0.23303636]
[1732477620512,0.10758982,96210.0,96207.0,0.23303636]
[1732477620690,0.10758982,96210.0,96209.0,0.18655143]
[1732477621026,0.10758982,96210.0,96207.0,0.23303636]
[1732477621452,0.10394,96209.0,96207.0,0.23303636]
[1732477621662,0.00364973,96209.0,96207.0,0.23303636]
[1732477622094,0.10758973,96209.0,96207.0,0.23303636]
[1732477622536,0.00364973,96209.0,96207.0,0.23303636]
[1732477623033,0.103941,96208.0,96207.0,0.23303636]
[1732477623247,0.10759063,96208.0,96207.0,0.23303636]
[1732477623468,0.00364963,96208.0,96207.0,0.23303636]
[1732477623681,0.103939,96210.0,96207.0,0.23303636]
[1732477623908,0.103939,96210.0,96207.0,0.23319684]
[1732477623909,0.00364963,96208.0,96207.0,0.23319684]
[1732477624131,0.103939,96210.0,96207.0,0.23319684]
[1732477624359,0.00364963,96208.0,96207.0,0.23319684]
[1732477624574,0.0474,96216.0,96207.0,0.23319684]
[1732477624793,0.00364963,96208.0,96207.0,0.23319684]
[1732477625263,0.103937,96212.0,96207.0,0.23319684]
[1732477625479,0.00364894,96208.0,96207.0,0.23319684]
[1732477625706,0.103937,96212.0,96207.0,0.23319684]
[1732477625927,0.103937,96212.0,96210.0,0.1865501]
[1732477626370,0.207869,96214.0,96210.0,0.1865501]
[1732477626371,0.103936,96213.0,96210.0,0.1865501]
[1732477626625,0.103936,96213.0,96212.0,0.13991294]
[1732477628210,0.0474,96216.0,96212.0,0.13991294]
[1732477628458,0.103935,96214.0,96212.0,0.13991294]
[1732477628683,0.103934,96215.0,96213.0,0.13991294]
[1732477628937,0.103929,96219.0,96213.0,0.13991586]
[1732477629197,0.0764,96223.0,96216.0,0.093539]
[1732477629198,0.05711192,96223.0,96216.0,0.093539]
[1732477629453,0.05711192,96223.0,96217.0,0.13991586]
[1732477629697,0.284238,96229.0,96215.0,0.093539]
[1732477629698,0.0764,96229.0,96223.0,0.093532]
[1732477629947,0.05711192,96230.0,96225.0,0.32697486]
[1732477630197,0.04488033,96244.0,96225.0,0.32697486]
[1732477630198,0.001712,96244.0,96228.0,0.13991586]
[1732477630457,0.001712,96244.0,96225.0,0.18655448]
[1732477630458,0.001712,96244.0,96229.0,0.13991586]
[1732477630676,0.001712,96244.0,96225.0,0.28008448]
[1732477630677,0.11422384,96240.0,96237.0,0.093518]
[1732477630906,0.001712,96244.0,96238.0,0.18655448]
[1732477631126,0.103903,96243.0,96238.0,0.18655448]
[1732477631344,0.103903,96243.0,96241.0,0.13986464]
[1732477631564,0.103903,96243.0,96240.0,0.13986464]
[1732477632248,0.31171,96243.0,96240.0,0.13986464]
[1732477632464,0.31171,96243.0,96238.0,0.13986464]
[1732477632465,0.103905,96242.0,96238.0,0.13986464]
[1732477632677,0.001712,96244.0,96238.0,0.13986464]
[1732477632895,0.103907,96240.0,96238.0,0.13986464]
[1732477633381,0.103904,96242.0,96238.0,0.13986464]
[1732477633606,0.001712,96244.0,96236.0,0.13986464]
[1732477633827,0.105615,96244.0,96236.0,0.23338364]
[1732477634264,0.105615,96244.0,96237.0,0.093518]
[1732477634454,0.105615,96244.0,96236.0,0.13584388]
[1732477634701,0.103904,96243.0,96236.0,0.13584388]
[1732477635589,0.001712,96244.0,96236.0,0.093519]
[1732477635828,0.001712,96244.0,96239.0,0.093516]
[1732477636037,0.001712,96244.0,96235.0,0.13986464]
[1732477636488,0.001712,96244.0,96243.0,0.093513]
[1732477636729,0.001712,96244.0,96243.0,0.23337764]
[1732477636933,0.001712,96244.0,96243.0,0.28006748]
[1732477637143,0.001712,96244.0,96243.0,0.093513]
[1732477637353,0.001712,96244.0,96243.0,0.28006748]
[1732477637587,0.001712,96244.0,96243.0,0.093513]
[1732477638469,0.001712,96244.0,96243.0,0.2330649]
[1732477638903,0.001712,96244.0,96243.0,0.27420541]
[1732477639361,0.001712,96244.0,96243.0,0.2330649]
[1732477639647,0.001712,96244.0,96243.0,0.093513]
[1732477653085,0.001712,96244.0,96243.0,0.162813]
[1732477653296,0.001712,96244.0,96243.0,0.238613]
[1732477653795,0.001712,96244.0,96243.0,0.37781492]
[1732477654464,0.001712,96244.0,96243.0,0.238613]
[1732477656041,0.001712,96244.0,96243.0,0.37781492]
[1732477656476,0.001712,96244.0,96243.0,0.238613]
[1732477659376,0.001712,96244.0,96243.0,0.82974846]
[1732477659594,0.001712,96244.0,96243.0,0.87812219]
[1732477659814,0.001712,96244.0,96243.0,0.67812219]
[1732477660042,0.001712,96244.0,96243.0,0.49433927]
[1732477660662,0.001712,96244.0,96243.0,0.72620792]
[1732477660893,0.001712,96244.0,96243.0,0.49433927]
[1732477661345,0.001712,96244.0,96243.0,0.72620792]
[1732477661552,0.001712,96244.0,96243.0,0.49433927]
[1732477662403,0.001712,96244.0,96243.0,0.72615293]
[1732477662656,0.001712,96244.0,96243.0,0.49433927]
[1732477663300,0.001712,96244.0,96243.0,0.72615293]
[1732477665308,0.001712,96244.0,96243.0,0.49433927]
[1732477667747,0.001712,96244.0,96243.0,0.49233927]
[1732477672399,0.001712,96244.0,96243.0,0.77051566]
[1732477672613,0.001712,96244.0,96243.0,0.69433927]
[1732477673059,0.001712,96244.0,96243.0,1.30559652]
[1732477673262,0.001712,96244.0,96243.0,0.89433927]
[1732477676562,0.001712,96244.0,96243.0,1.00343927]
[1732477680338,0.049956,96273.0,96272.0,0.116485]
[1732477680767,0.049956,96273.0,96272.0,0.4508421]
[1732477680768,0.000856,96273.0,96272.0,0.4508421]
[1732477681211,0.000856,96273.0,96272.0,0.21849927]
[1732477681698,0.000856,96273.0,96272.0,0.26095926]
[1732477683274,0.130656,96273.0,96272.0,0.06545999]
[1732477683769,0.1298,96272.0,96270.0,0.15]
[1732477684005,0.00402496,96273.0,96270.0,0.15]
[1732477684006,0.1258,96271.0,96270.0,0.15]
[1732477684241,0.0778,96269.0,96266.0,0.13945528]
[1732477684425,0.1258,96267.0,96262.0,0.13945528]
[1732477684677,0.0766,96267.0,96261.0,0.13945528]
[1732477684889,0.103884,96261.0,96260.0,0.13945528]
[1732477685099,0.103888,96257.0,96256.0,0.13945528]
[1732477685314,0.103892,96254.0,96250.0,0.13945528]
[1732477685538,0.0766,96253.0,96247.0,0.13945528]
[1732477686018,0.0766,96253.0,96246.0,0.13945528]
[1732477686463,0.0766,96253.0,96247.0,0.13945528]
[1732477686669,0.0766,96253.0,96246.0,0.13945528]
[1732477687555,0.00311098,96252.0,96246.0,0.13945528]
[1732477687963,0.00311098,96252.0,96247.0,0.13945528]
[1732477691406,0.00311098,96252.0,96250.0,0.093505]
[1732477691608,0.00311098,96252.0,96250.0,0.27944538]
[1732477691829,0.0766,96253.0,96250.0,0.27944538]
[1732477691830,0.0766,96253.0,96251.0,0.18594038]
[1732477692297,0.00299105,96252.0,96250.0,0.093505]
[1732477692721,0.00299105,96252.0,96251.0,0.18610321]
[1732477692945,0.00299105,96252.0,96250.0,0.093505]
[1732477693168,0.00299105,96252.0,96251.0,0.18610584]
[1732477693410,0.00299105,96252.0,96250.0,0.093505]
[1732477694249,0.00299105,96252.0,96250.0,0.32614085]
[1732477694676,0.00299105,96252.0,96251.0,0.093505]
[1732477695604,0.00299105,96252.0,96251.0,0.32614085]
[1732477695811,0.0766,96253.0,96252.0,0.093504]
[1732477696293,0.0766,96253.0,96252.0,0.32613985]
[1732477696499,0.0766,96253.0,96252.0,0.093504]
[1732477696945,0.07947254,96253.0,96252.0,0.093504]
[1732477697836,0.0766,96253.0,96252.0,0.093504]
[1732477705089,0.07600114,96253.0,96252.0,0.093504]
[1732477707293,0.07951753,96253.0,96252.0,0.093504]
[1732477707503,0.07685714,96253.0,96252.0,0.093504]
[1732477710507,0.000856,96253.0,96252.0,0.21851827]
[1732477711631,0.000856,96253.0,96252.0,0.73073054]
[1732477711834,0.000856,96253.0,96252.0,0.70031827]
[1732477712043,0.000856,96253.0,96252.0,0.69831827]
[1732477712668,0.000856,96253.0,96252.0,0.70031827]
[1732477713539,0.000856,96253.0,96252.0,0.69831827]
[1732477717069,0.000856,96253.0,96252.0,0.36851827]
[1732477718807,0.000856,96253.0,96252.0,0.64754481]
[1732477719263,0.000856,96253.0,96252.0,0.36851827]
[1732477720395,0.000856,96253.0,96252.0,0.37023007]
[1732477720604,0.000856,96253.0,96252.0,0.64925661]
[1732477721680,0.000856,96253.0,96252.0,0.64924087]
[1732477725405,0.000856,96253.0,96252.0,0.37023007]
[1732477725625,0.000856,96253.0,96252.0,0.64928611]
[1732477726042,0.0783,96261.0,96252.0,0.55578211]
[1732477726260,0.0783,96261.0,96260.0,0.266496]
[1732477726464,0.0783,96261.0,96260.0,0.36851027]
[1732477726952,0.1245,96261.0,96260.0,0.40554855]
[1732477727176,0.00237623,96261.0,96260.0,0.13954949]
[1732477727411,0.0808,96260.0,96255.0,0.13954949]
[1732477727625,0.0808,96258.0,96254.0,0.13954949]
[1732477727833,0.103881,96264.0,96254.0,0.13954949]
[1732477727834,0.0462,96257.0,96254.0,0.13954949]
[1732477728080,0.0808,96256.0,96254.0,0.13954949]
[1732477728301,0.0808,96256.0,96255.0,0.16254949]
[1732477729142,0.0808,96256.0,96255.0,0.023]
[1732477729346,0.0808,96256.0,96255.0,0.30255702]
[1732477730223,0.0808,96256.0,96255.0,0.116501]
[1732477731938,0.08317806,96256.0,96255.0,0.116501]
[1732477732173,0.0808,96256.0,96255.0,0.116501]
[1732477732587,0.0816559,96256.0,96255.0,0.15839844]
[1732477735985,0.0008559,96256.0,96255.0,0.26145155]
[1732477736190,0.0008559,96256.0,96255.0,0.26041271]
[1732477737156,0.0008559,96256.0,96255.0,0.53972142]
[1732477739001,0.0008559,96256.0,96255.0,0.26041271]
[1732477759260,0.05704195,96270.0,96269.0,0.116488]
[1732477759492,0.000856,96273.0,96272.0,0.116485]
[1732477760165,0.000856,96273.0,96272.0,0.093485]
[1732477760375,0.000856,96273.0,96272.0,0.023]
[1732477760591,0.000856,96273.0,96271.0,0.023]
[1732477761014,0.000856,96273.0,96272.0,0.023]
[1732477761472,0.000856,96273.0,96266.0,0.37296294]
[1732477761473,0.0478,96270.0,96266.0,0.023]
[1732477761691,0.0788,96269.0,96266.0,0.023]
[1732477761890,0.08097241,96269.0,96266.0,0.023]
[1732477762102,0.08097241,96269.0,96263.0,0.093493]
[1732477762103,0.08097241,96269.0,96264.0,0.023]
[1732477762345,0.08097241,96269.0,96264.0,0.30247294]
[1732477763039,0.08097241,96269.0,96264.0,0.023]
[1732477763255,0.08097241,96269.0,96265.0,0.023]
[1732477763896,0.08097241,96269.0,96265.0,0.116491]
[1732477764127,0.08097241,96269.0,96266.0,0.09349]
[1732477764560,0.08097241,96269.0,96264.0,0.023]
[1732477764773,0.08097241,96269.0,96266.0,0.023]
[1732477764988,0.08097241,96269.0,96264.0,0.39604816]
[1732477765201,0.08097241,96269.0,96264.0,0.30255616]
[1732477766053,0.08097241,96269.0,96264.0,0.023]
[1732477766294,0.08097241,96269.0,96264.0,0.116492]
[1732477766750,0.08097241,96269.0,96265.0,0.093491]
[1732477766961,0.08097241,96269.0,96266.0,0.023]
[1732477767405,0.08097241,96269.0,96263.0,0.023]
[1732477767629,0.08097241,96269.0,96263.0,0.116493]
[1732477768318,0.08182831,96269.0,96265.0,0.093491]
[1732477768549,0.08182831,96269.0,96264.0,0.093492]
[1732477768768,0.08182831,96269.0,96266.0,0.09349]
[1732477769211,0.08182831,96269.0,96268.0,0.093489]
[1732477769460,0.00302831,96269.0,96263.0,0.30255616]
[1732477769672,0.00302831,96269.0,96258.0,0.093497]
[1732477769673,0.00302831,96269.0,96268.0,0.21850327]
[1732477770148,0.0008559,96269.0,96268.0,0.49776955]
[1732477770383,0.0008559,96269.0,96268.0,0.21850327]
[1732477771914,0.0008559,96269.0,96268.0,0.12501427]
[1732477772132,0.0008559,96269.0,96265.0,0.023]
[1732477772133,0.0475559,96269.0,96265.0,0.023]
[1732477772353,0.0475559,96269.0,96263.0,0.27928562]
[1732477772354,0.0475559,96269.0,96264.0,0.023]
[1732477772574,0.0475559,96269.0,96261.0,0.093495]
[1732477772575,0.07817812,96268.0,96262.0,0.023]
[1732477772792,0.07817812,96268.0,96260.0,0.27926779]
[1732477773070,0.07817812,96268.0,96267.0,0.18619723]
[1732477773504,0.18205412,96268.0,96267.0,0.18619723]
[1732477773762,0.103878,96266.0,96265.0,0.18619723]
[1732477773981,0.103878,96266.0,96254.0,0.27926779]
[1732477773982,0.0778,96265.0,96264.0,0.13967521]
[1732477774187,0.0778,96265.0,96261.0,0.18619723]
[1732477774188,0.07997527,96265.0,96262.0,0.13967521]
[1732477774417,0.103882,96263.0,96262.0,0.13967521]
[1732477774860,0.10605703,96263.0,96262.0,0.13967521]
[1732477775954,0.00217503,96263.0,96261.0,0.13967521]
[1732477776188,0.28556,96265.0,96259.0,0.18619723]
[1732477776189,0.103883,96262.0,96259.0,0.18619723]
[1732477776399,0.00217479,96261.0,96259.0,0.18619723]
[1732477777103,0.181686,96259.0,96258.0,0.18619723]
[1732477777327,0.181686,96259.0,96257.0,0.13968871]
[1732477777328,0.103887,96258.0,96257.0,0.13968918]
[1732477777553,0.103887,96258.0,96253.0,0.23444636]
[1732477777554,0.103888,96257.0,96256.0,0.13968918]
[1732477777781,0.10606231,96257.0,96256.0,0.13968918]
[1732477777997,0.00217431,96257.0,96256.0,0.13968918]
[1732477778286,0.126,96259.0,96256.0,0.18619089]
[1732477778498,0.126,96259.0,96258.0,0.13964464]
[1732477778713,0.229886,96259.0,96258.0,0.13963097]
[1732477778923,0.103887,96258.0,96257.0,0.13963097]
[1732477779152,0.103889,96256.0,96255.0,0.18619089]
[1732477779374,0.103889,96256.0,96255.0,0.18617806]
[1732477779603,0.103887,96258.0,96255.0,0.18617806]
[1732477779811,0.00217431,96257.0,96255.0,0.18617806]
[1732477780032,0.00303021,96257.0,96255.0,0.18617806]
[1732477781000,0.0008559,96257.0,96255.0,0.18617806]
[1732477781444,0.0008559,96257.0,96253.0,0.0952148]
[1732477781875,0.0008559,96257.0,96254.0,0.093502]
[1732477782326,0.0008559,96257.0,96256.0,0.0935]
[1732477782555,0.0008559,96257.0,96256.0,0.11753884]
[1732477782789,0.0008559,96257.0,96256.0,0.1165]
[1732477783251,0.0008559,96257.0,96256.0,0.11753877]
[1732477785967,0.0008559,96257.0,96256.0,0.1165]
[1732477788635,0.0008559,96257.0,96256.0,0.39562954]
[1732477791995,0.0008559,96257.0,96256.0,0.39734134]
[1732477793054,0.0008559,96257.0,96256.0,0.22022607]
[1732477796630,0.0008559,96257.0,96256.0,0.30152607]
[1732477797077,0.0008559,96257.0,96256.0,0.50152607]
[1732477797561,0.0008559,96257.0,96256.0,0.65152607]
[1732477798879,0.0008559,96257.0,96256.0,0.57022607]
[1732477799108,0.0008559,96257.0,96256.0,0.37022607]
[1732477799760,0.0008559,96257.0,96256.0,0.78214393]
[1732477800029,0.0008559,96257.0,96256.0,0.37022607]
[1732477800438,0.0008559,96257.0,96256.0,0.78214393]
[1732477800645,0.0008559,96257.0,96256.0,0.57022607]
[1732477800849,0.0008559,96257.0,96256.0,0.98214393]
[1732477801056,0.0008559,96257.0,96256.0,0.57022607]
[1732477804538,0.0008559,96257.0,96256.0,0.37022607]
[1732477807341,0.0497559,96257.0,96256.0,0.5326231]
[1732477807561,0.0497559,96257.0,96256.0,0.28060883]
[1732477807816,0.0497559,96257.0,96256.0,0.0017118]
[1732477808699,0.0517325,96257.0,96256.0,0.0017118]
[1732477809413,0.1335325,96257.0,96256.0,0.18770604]
[1732477809634,0.1335325,96257.0,96256.0,0.0017118]
[1732477810047,0.2374205,96257.0,96256.0,0.0017118]
[1732477810254,0.1335325,96257.0,96256.0,0.0017118]
[1732477810917,0.1335325,96257.0,96256.0,0.18770998]
[1732477811342,0.1335325,96257.0,96256.0,0.0017118]
[1732477811986,0.1315559,96257.0,96256.0,0.0017118]
[1732477812404,0.13351933,96257.0,96256.0,0.0017118]
[1732477813056,0.13351933,96257.0,96256.0,0.18770998]
[1732477813537,0.13351933,96257.0,96256.0,0.0017118]
[1732477813778,0.13351933,96257.0,96256.0,0.18770998]
[1732477813989,0.13351933,96257.0,96256.0,0.0017118]
[1732477814480,0.13351933,96257.0,96256.0,0.18770998]
[1732477815659,0.13351933,96257.0,96256.0,0.0017118]
[1732477815924,0.13351933,96257.0,96256.0,0.30524885]
[1732477816126,0.00281933,96257.0,96256.0,0.1182118]
[1732477816351,0.00281933,96257.0,96256.0,0.35070953]
[1732477816594,0.0008559,96257.0,96256.0,0.35070953]
[1732477816873,0.0008559,96257.0,96256.0,0.1182118]
[1732477817316,0.00281933,96257.0,96256.0,0.1182118]
[1732477817583,0.0008559,96257.0,96256.0,0.1182118]
[1732477819803,0.0008559,96257.0,96256.0,0.16067514]
[1732477823411,0.0008559,96257.0,96256.0,0.1182118]
[1732477824052,0.0008559,96257.0,96256.0,0.0247118]
[1732477824811,0.0008559,96257.0,96256.0,0.1182118]
[1732477825505,0.0008559,96257.0,96256.0,0.0247118]
[1732477827919,0.00282418,96257.0,96256.0,0.0247118]
[1732477828130,0.0008559,96257.0,96256.0,0.0247118]
[1732477828560,0.0008559,96257.0,96256.0,0.0017118]
[1732477830912,0.0008559,96257.0,96256.0,0.0952118]
[1732477831339,0.0008559,96257.0,96256.0,0.0017118]
[1732477832505,0.0469559,96257.0,96256.0,0.0017118]
[1732477832736,0.2288439,96257.0,96256.0,0.0017118]
[1732477832984,0.23134296,96257.0,96256.0,0.0017118]
[1732477834943,0.12745496,96257.0,96256.0,0.0017118]
[1732477835369,0.23134296,96257.0,96256.0,0.0017118]
[1732477836419,0.12745496,96257.0,96256.0,0.0017118]
[1732477843578,0.23134296,96257.0,96256.0,0.0017118]
[1732477843785,0.12745496,96257.0,96256.0,0.0017118]
[1732477844029,0.23134296,96257.0,96256.0,0.14126526]
[1732477844243,0.23134296,96257.0,96256.0,0.0017118]
[1732477844244,0.12745496,96257.0,96256.0,0.0017118]
[1732477845128,0.12745496,96257.0,96256.0,0.14126526]
[1732477845561,0.12745496,96257.0,96256.0,0.0017118]
[1732477845785,0.12745496,96257.0,96256.0,0.14129243]
[1732477846249,0.1249559,96257.0,96256.0,0.14129243]
[1732477846483,0.12735863,96257.0,96256.0,0.14129243]
[1732477847133,0.12735863,96257.0,96256.0,0.0017118]
[1732477847404,0.12735863,96257.0,96256.0,0.14129243]
[1732477847606,0.12735863,96257.0,96256.0,0.0017118]
[1732477847997,0.12735863,96257.0,96256.0,0.14130991]
[1732477848216,0.12735863,96257.0,96256.0,0.0017118]
[1732477852239,0.12735863,96257.0,96256.0,0.23434619]
[1732477852667,0.1249559,96257.0,96256.0,0.0017118]
[1732477852883,0.12716863,96257.0,96256.0,0.0017118]
[1732477855749,0.12716863,96257.0,96256.0,0.23457478]
[1732477855979,0.12716863,96257.0,96256.0,0.0017118]
[1732477856216,0.12716863,96257.0,96256.0,0.23457918]
[1732477856683,0.12716863,96257.0,96256.0,0.0017118]
[1732477856925,0.12716863,96257.0,96256.0,0.2345738]
[1732477858618,0.1249559,96257.0,96256.0,0.2345738]
[1732477859063,0.1275218,96257.0,96256.0,0.2345738]
[1732477859271,0.1275218,96257.0,96256.0,0.3280738]
[1732477859500,0.0034218,96257.0,96256.0,0.0952118]
[1732477859964,0.0008559,96257.0,96256.0,0.37437307]
[1732477860198,0.0008559,96257.0,96256.0,0.37456013]
[1732477861089,0.0008559,96257.0,96256.0,0.41680031]
[1732477862915,0.0008559,96257.0,96256.0,0.37456013]
[1732477863587,0.0008559,96257.0,96256.0,0.37455302]
[1732477867432,0.0008559,96257.0,96256.0,0.37457082]
[1732477867658,0.0008559,96257.0,96256.0,0.0952118]
[1732477870633,0.0008559,96257.0,96256.0,0.1182118]
[1732477872827,0.0008559,96257.0,96256.0,0.39760922]
[1732477875677,0.0008559,96257.0,96256.0,0.44680922]
[1732477877236,0.0008559,96257.0,96256.0,0.39760922]
[1732477879152,0.0008559,96257.0,96256.0,0.49962349]
[1732477879384,0.0008559,96257.0,96256.0,0.22022607]
[1732477907587,0.0504559,96257.0,96256.0,0.0247118]
[1732477907844,0.1269559,96257.0,96256.0,0.0017118]
[1732477908080,0.1269559,96257.0,96256.0,0.28133319]
[1732477908300,0.1269559,96257.0,96256.0,0.0017118]
[1732477908511,0.12923429,96257.0,96256.0,0.0017118]
[1732477908721,0.23312229,96257.0,96256.0,0.0017118]
[1732477909400,0.12923429,96257.0,96256.0,0.0017118]
[1732477913471,0.12923429,96257.0,96256.0,0.2345631]
[1732477914252,0.23312229,96257.0,96256.0,0.2345631]
[1732477914866,0.12923429,96257.0,96256.0,0.2345631]
[1732477918389,0.12923429,96257.0,96256.0,0.0017118]
[1732477918815,0.12923429,96257.0,96256.0,0.2345631]
[1732477919025,0.12923429,96257.0,96256.0,0.0017118]
[1732477919649,0.12923429,96257.0,96256.0,0.23463904]
[1732477920600,0.12923429,96257.0,96256.0,0.0017118]
[1732477927814,0.23312229,96257.0,96256.0,0.23460487]
[1732477928166,0.23312229,96257.0,96256.0,0.0017118]
[1732477934156,0.12923429,96257.0,96256.0,0.0017118]
[1732477934372,0.23312229,96257.0,96256.0,0.0017118]
[1732477935708,0.12923429,96257.0,96256.0,0.0017118]
[1732477935931,0.23312229,96257.0,96256.0,0.0017118]
[1732477939136,0.12923429,96257.0,96256.0,0.0017118]
[1732477939361,0.23312229,96257.0,96256.0,0.0017118]
[1732477940061,0.12923429,96257.0,96256.0,0.0017118]
[1732477940530,0.23312229,96257.0,96256.0,0.0017118]
[1732477941932,0.12923429,96257.0,96256.0,0.0017118]
[1732477942223,0.23312229,96257.0,96256.0,0.0017118]
[1732477944099,0.12923429,96257.0,96256.0,0.0017118]
[1732477944327,0.23312229,96257.0,96256.0,0.0017118]
[1732477950379,0.22812229,96257.0,96256.0,0.0017118]
[1732477952179,0.33013656,96257.0,96256.0,0.0017118]
[1732477954690,0.33099256,96257.0,96256.0,0.0017118]
[1732477971800,0.33099256,96257.0,96256.0,0.14164115]
[1732477972531,0.33099256,96257.0,96256.0,0.0017118]
[1732477972797,0.33099256,96257.0,96256.0,0.14170467]
[1732477973253,0.33099256,96257.0,96256.0,0.14170551]
[1732477973472,0.33099256,96257.0,96256.0,0.0017118]
[1732477979965,0.33099256,96257.0,96256.0,0.18828427]